[Event "Titled Tuesday Blitz July 18 Late 2023"]
[White "Izuzquiza Gonzalez, Javier"]
[Black "Seyhanoglu, Deniz"]
[WhiteFideId "3101029"]
[BlackFideId "6302572"]
[WhiteElo "2280"]
[BlackElo "2420"]
[Result "1-0"]
[Round "9"]
[TimeControl "180+2"]
[Date "2023.07.18"]
[WhiteClock "0:00:41"]
[BlackClock "0:00:31"]
[Board "87"]

1. d4 {[%clk 0:03:00]}  d5 {[%clk 0:02:59]} 2. c4 {[%clk 0:03:00]}  c6 {[%clk 0:02:58]} 3. Nf3 {[%clk 0:03:00]}  Nf6 {[%clk 0:02:56]} 4. g3 {[%clk 0:02:59]}  a6 {[%clk 0:02:55]} 5. Qc2 {[%clk 0:02:59]}  b5 {[%clk 0:02:54]} 6. b3 {[%clk 0:02:58]}  e6 {[%clk 0:02:48]} 7. Bg2 {[%clk 0:02:57]}  Be7 {[%clk 0:02:48]} 8. O-O {[%clk 0:02:57]}  Nbd7 {[%clk 0:02:47]} 9. Nbd2 {[%clk 0:02:57]}  Bb7 {[%clk 0:02:48]} 10. Bb2 {[%clk 0:02:57]}  O-O {[%clk 0:02:38]} 11. Rad1 {[%clk 0:02:56]}  Rc8 {[%clk 0:02:36]} 12. e4 {[%clk 0:02:53]}  dxe4 {[%clk 0:02:28]} 13. Nxe4 {[%clk 0:02:54]}  Nxe4 {[%clk 0:02:27]} 14. Qxe4 {[%clk 0:02:55]}  Nf6 {[%clk 0:02:23]} 15. Qc2 {[%clk 0:02:51]}  bxc4 {[%clk 0:02:19]} 16. bxc4 {[%clk 0:02:51]}  Qb6 {[%clk 0:02:13]} 17. c5 {[%clk 0:02:48]}  Qc7 {[%clk 0:02:09]} 18. Ne5 {[%clk 0:02:48]}  Nd5 {[%clk 0:02:05]} 19. Be4 {[%clk 0:02:39]}  g6 {[%clk 0:01:58]} 20. Bc1 {[%clk 0:02:31]}  Bf6 {[%clk 0:01:55]} 21. Ng4 {[%clk 0:02:24]}  Bg7 {[%clk 0:01:49]} 22. Bg2 {[%clk 0:02:16]}  a5 {[%clk 0:01:48]} 23. Bh6 {[%clk 0:02:06]}  Ba6 {[%clk 0:01:45]} 24. Rfe1 {[%clk 0:02:03]}  Rfd8 {[%clk 0:01:36]} 25. Bxg7 {[%clk 0:02:02]}  Kxg7 {[%clk 0:01:36]} 26. Qd2 {[%clk 0:02:00]}  Qe7 {[%clk 0:01:31]} 27. Qh6+ {[%clk 0:02:00]}  Kg8 {[%clk 0:01:30]} 28. Re5 {[%clk 0:01:22]}  f6 {[%clk 0:01:24]} 29. Ree1 {[%clk 0:01:13]}  Re8 {[%clk 0:01:24]} 30. Bxd5 {[%clk 0:01:08]}  cxd5 {[%clk 0:01:24]} 31. Re3 {[%clk 0:01:08]}  Rb8 {[%clk 0:01:07]} 32. Rde1 {[%clk 0:01:07]}  Qf7 {[%clk 0:01:02]} 33. Qf4 {[%clk 0:01:07]}  Kg7 {[%clk 0:01:00]} 34. Qh6+ {[%clk 0:00:59]}  Kg8 {[%clk 0:01:00]} 35. Qf4 {[%clk 0:00:59]}  Kg7 {[%clk 0:00:56]} 36. Qd6 {[%clk 0:00:59]}  Bc8 {[%clk 0:00:42]} 37. Qxb8 {[%clk 0:00:57]}  e5 {[%clk 0:00:41]} 38. dxe5 {[%clk 0:00:41]}  Bxg4 {[%clk 0:00:31]} 39. exf6+ {[%clk 0:00:41]} 1-0


[Site "https://www.chess.com"]

[Event "Titled Tuesday Blitz July 18 Late 2023"]
[White "Osmonbekov, Talaibek"]
[Black "Bueno, Alfeu Junior Varela"]
[WhiteFideId "2017253"]
[BlackFideId "2108879"]
[WhiteElo "2200"]
[BlackElo "2405"]
[Result "0-1"]
[Round "9"]
[TimeControl "180+2"]
[Date "2023.07.18"]
[WhiteClock "0:00:07"]
[BlackClock "0:00:02"]
[Board "88"]

1. d4 {[%clk 0:03:00]}  e6 {[%clk 0:02:57]} 2. Nc3 {[%clk 0:02:59]}  Nf6 {[%clk 0:02:42]} 3. e4 {[%clk 0:02:58]}  d5 {[%clk 0:02:42]} 4. e5 {[%clk 0:02:58]}  Nfd7 {[%clk 0:02:42]} 5. f4 {[%clk 0:02:57]}  c5 {[%clk 0:02:42]} 6. Nf3 {[%clk 0:02:57]}  Nc6 {[%clk 0:02:43]} 7. Be3 {[%clk 0:02:56]}  cxd4 {[%clk 0:02:44]} 8. Nxd4 {[%clk 0:02:56]}  Bc5 {[%clk 0:02:45]} 9. Na4 {[%clk 0:02:33]}  Be7 {[%clk 0:02:42]} 10. c3 {[%clk 0:02:25]}  O-O {[%clk 0:02:40]} 11. Bd3 {[%clk 0:02:22]}  a6 {[%clk 0:02:19]} 12. Qh5 {[%clk 0:01:46]}  g6 {[%clk 0:02:17]} 13. Nxc6 {[%clk 0:01:39]}  bxc6 {[%clk 0:01:59]} 14. Qh6 {[%clk 0:01:40]}  Re8 {[%clk 0:01:44]} 15. O-O {[%clk 0:01:39]}  Qa5 {[%clk 0:01:21]} 16. b3 {[%clk 0:01:33]}  Nc5 {[%clk 0:01:09]} 17. b4 {[%clk 0:00:47]}  Qxa4 {[%clk 0:01:01]} 18. bxc5 {[%clk 0:00:47]}  Bf8 {[%clk 0:00:47]} 19. Qh4 {[%clk 0:00:43]}  Qa3 {[%clk 0:00:46]} 20. Bd4 {[%clk 0:00:37]}  Bxc5 {[%clk 0:00:43]} 21. Rf3 {[%clk 0:00:36]}  Qxc3 {[%clk 0:00:37]} 22. Bxc5 {[%clk 0:00:29]}  Qxc5+ {[%clk 0:00:19]} 23. Kh1 {[%clk 0:00:28]}  Qe7 {[%clk 0:00:19]} 24. Qh6 {[%clk 0:00:27]}  Qf8 {[%clk 0:00:17]} 25. Qh4 {[%clk 0:00:27]}  c5 {[%clk 0:00:16]} 26. Rh3 {[%clk 0:00:26]}  Qg7 {[%clk 0:00:16]} 27. g4 {[%clk 0:00:19]}  Bb7 {[%clk 0:00:15]} 28. Kg1 {[%clk 0:00:18]}  c4 {[%clk 0:00:14]} 29. Bc2 {[%clk 0:00:16]}  d4 {[%clk 0:00:15]} 30. f5 {[%clk 0:00:16]}  exf5 {[%clk 0:00:11]} 31. gxf5 {[%clk 0:00:15]}  g5 {[%clk 0:00:08]} 32. Qg4 {[%clk 0:00:12]}  Rxe5 {[%clk 0:00:06]} 33. f6 {[%clk 0:00:11]}  Qxf6 {[%clk 0:00:06]} 34. Bxh7+ {[%clk 0:00:10]}  Kf8 {[%clk 0:00:06]} 35. Rf1 {[%clk 0:00:10]}  Qc6 {[%clk 0:00:03]} 36. Qh5 {[%clk 0:00:07]}  Qg2# {[%clk 0:00:02]} 0-1


[Site "https://www.chess.com"]

[Event "Titled Tuesday Blitz July 18 Late 2023"]
[White "Shubenkova, Veronika"]
[Black "Prieto Aranguren, Alain"]
[WhiteFideId "44124040"]
[BlackFideId "2268906"]
[WhiteElo "2494"]
[BlackElo "2362"]
[Result "1-0"]
[Round "9"]
[TimeControl "180+2"]
[Date "2023.07.18"]
[WhiteClock "0:02:44"]
[BlackClock "0:00:11"]
[Board "92"]

1. e4 {[%clk 0:03:00]}  c5 {[%clk 0:02:56]} 2. Nc3 {[%clk 0:03:00]}  Nc6 {[%clk 0:02:55]} 3. g3 {[%clk 0:03:01]}  g6 {[%clk 0:02:54]} 4. Bg2 {[%clk 0:03:02]}  Bg7 {[%clk 0:02:54]} 5. d3 {[%clk 0:03:03]}  d6 {[%clk 0:02:54]} 6. f4 {[%clk 0:03:03]}  e5 {[%clk 0:02:53]} 7. Nf3 {[%clk 0:03:04]}  Nge7 {[%clk 0:02:52]} 8. O-O {[%clk 0:03:04]}  O-O {[%clk 0:02:52]} 9. Be3 {[%clk 0:03:04]}  Nd4 {[%clk 0:02:50]} 10. Rb1 {[%clk 0:03:04]}  h6 {[%clk 0:02:41]} 11. Ne2 {[%clk 0:03:02]}  Nxf3+ {[%clk 0:02:38]} 12. Bxf3 {[%clk 0:03:02]}  Bh3 {[%clk 0:02:36]} 13. Bg2 {[%clk 0:03:02]}  Bxg2 {[%clk 0:02:34]} 14. Kxg2 {[%clk 0:03:03]}  Qa5 {[%clk 0:02:19]} 15. a3 {[%clk 0:03:01]}  f5 {[%clk 0:02:16]} 16. Nc3 {[%clk 0:02:58]}  Nc6 {[%clk 0:02:05]} 17. Nd5 {[%clk 0:02:57]}  exf4 {[%clk 0:01:51]} 18. gxf4 {[%clk 0:02:56]}  Bd4 {[%clk 0:01:51]} 19. Bd2 {[%clk 0:02:55]}  Qd8 {[%clk 0:01:48]} 20. c3 {[%clk 0:02:55]}  Bg7 {[%clk 0:01:46]} 21. Kh1 {[%clk 0:02:53]}  fxe4 {[%clk 0:01:43]} 22. dxe4 {[%clk 0:02:53]}  Re8 {[%clk 0:01:42]} 23. Qg4 {[%clk 0:02:52]}  Rxe4 {[%clk 0:01:33]} 24. Qxg6 {[%clk 0:02:52]}  Re2 {[%clk 0:00:48]} 25. Rg1 {[%clk 0:02:47]}  Rxh2+ {[%clk 0:00:23]} 26. Kxh2 {[%clk 0:02:46]}  Qh4+ {[%clk 0:00:24]} 27. Kg2 {[%clk 0:02:47]}  Ne7 {[%clk 0:00:16]} 28. Nxe7+ {[%clk 0:02:46]}  Kh8 {[%clk 0:00:11]} 29. Qxg7+ {[%clk 0:02:44]} 1-0


[Site "https://www.chess.com"]

[Event "Titled Tuesday Blitz July 18 Late 2023"]
[White "Mazurkiewicz, Michal"]
[Black "Garmendiarov"]
[WhiteFideId "1124943"]
[WhiteElo "2405"]
[BlackElo "2299"]
[Result "0-1"]
[Round "9"]
[TimeControl "180+2"]
[Date "2023.07.18"]
[WhiteClock "0:00:51"]
[BlackClock "0:00:11"]
[Board "100"]

1. e4 {[%clk 0:02:59]}  c5 {[%clk 0:03:00]} 2. Nf3 {[%clk 0:02:50]}  d6 {[%clk 0:03:00]} 3. g3 {[%clk 0:02:44]}  Nf6 {[%clk 0:03:00]} 4. d3 {[%clk 0:02:39]}  Nc6 {[%clk 0:03:00]} 5. Bg2 {[%clk 0:02:38]}  g6 {[%clk 0:03:01]} 6. O-O {[%clk 0:02:35]}  Bg7 {[%clk 0:03:01]} 7. Re1 {[%clk 0:02:36]}  O-O {[%clk 0:03:01]} 8. e5 {[%clk 0:02:36]}  Nxe5 {[%clk 0:02:55]} 9. Nxe5 {[%clk 0:02:37]}  dxe5 {[%clk 0:02:56]} 10. Rxe5 {[%clk 0:02:37]}  Ng4 {[%clk 0:02:48]} 11. Re2 {[%clk 0:02:35]}  c4 {[%clk 0:02:36]} 12. h3 {[%clk 0:02:34]}  Ne5 {[%clk 0:02:27]} 13. d4 {[%clk 0:02:33]}  Nc6 {[%clk 0:02:07]} 14. c3 {[%clk 0:02:32]}  Bf5 {[%clk 0:02:05]} 15. Na3 {[%clk 0:02:27]}  Bd3 {[%clk 0:02:02]} 16. Re1 {[%clk 0:02:27]}  e5 {[%clk 0:01:44]} 17. d5 {[%clk 0:02:24]}  Ne7 {[%clk 0:01:41]} 18. d6 {[%clk 0:02:13]}  Qxd6 {[%clk 0:01:37]} 19. Nxc4 {[%clk 0:02:13]}  Qd7 {[%clk 0:01:19]} 20. Nxe5 {[%clk 0:02:13]}  Bxe5 {[%clk 0:01:19]} 21. Rxe5 {[%clk 0:02:14]}  Nc6 {[%clk 0:01:12]} 22. Rd5 {[%clk 0:02:13]}  Qe6 {[%clk 0:00:53]} 23. Qxd3 {[%clk 0:02:09]}  Rad8 {[%clk 0:00:51]} 24. Bh6 {[%clk 0:02:07]}  Rfe8 {[%clk 0:00:50]} 25. Rd1 {[%clk 0:02:02]}  Rxd5 {[%clk 0:00:49]} 26. Bxd5 {[%clk 0:01:54]}  Qxh3 {[%clk 0:00:47]} 27. Bxc6 {[%clk 0:01:52]}  bxc6 {[%clk 0:00:38]} 28. Qd7 {[%clk 0:01:50]}  Re1+ {[%clk 0:00:34]} 29. Rxe1 {[%clk 0:01:50]}  Qxd7 {[%clk 0:00:34]} 30. Bg5 {[%clk 0:01:42]}  h5 {[%clk 0:00:30]} 31. Re7 {[%clk 0:01:38]}  Qd1+ {[%clk 0:00:28]} 32. Kh2 {[%clk 0:01:36]}  Qf3 {[%clk 0:00:22]} 33. Be3 {[%clk 0:01:33]}  g5 {[%clk 0:00:18]} 34. Re5 {[%clk 0:01:06]}  f6 {[%clk 0:00:15]} 35. Re7 {[%clk 0:01:05]}  h4 {[%clk 0:00:14]} 36. gxh4 {[%clk 0:01:05]}  gxh4 {[%clk 0:00:12]} 37. Bd4 {[%clk 0:01:05]}  h3 {[%clk 0:00:11]} 38. Re3 {[%clk 0:00:51]}  Qg2# {[%clk 0:00:11]} 0-1


[Site "https://www.chess.com"]

[Event "Titled Tuesday Blitz July 18 Late 2023"]
[White "Boor, Carl"]
[Black "Barwinska, Ewa"]
[WhiteFideId "2017008"]
[BlackFideId "21833761"]
[WhiteElo "2398"]
[BlackElo "2292"]
[Result "1/2-1/2"]
[Round "9"]
[TimeControl "180+2"]
[Date "2023.07.18"]
[WhiteClock "0:00:39"]
[BlackClock "0:00:05"]
[Board "101"]

1. e4 {[%clk 0:03:00]}  c5 {[%clk 0:02:59]} 2. b4 {[%clk 0:03:00]}  cxb4 {[%clk 0:02:57]} 3. a3 {[%clk 0:03:00]}  Nc6 {[%clk 0:02:52]} 4. axb4 {[%clk 0:02:56]}  Nxb4 {[%clk 0:02:53]} 5. c3 {[%clk 0:02:53]}  Nc6 {[%clk 0:02:49]} 6. d4 {[%clk 0:02:53]}  d5 {[%clk 0:02:48]} 7. exd5 {[%clk 0:02:48]}  Qxd5 {[%clk 0:02:47]} 8. Na3 {[%clk 0:02:44]}  e5 {[%clk 0:01:55]} 9. Nb5 {[%clk 0:02:43]}  Bd6 {[%clk 0:01:56]} 10. Bc4 {[%clk 0:02:15]}  Qxg2 {[%clk 0:01:33]} 11. Nxd6+ {[%clk 0:02:14]}  Kd7 {[%clk 0:01:34]} 12. dxe5 {[%clk 0:02:07]}  Qxh1 {[%clk 0:01:03]} 13. Nb5+ {[%clk 0:02:06]}  Ke8 {[%clk 0:00:47]} 14. Nc7+ {[%clk 0:02:04]}  Kf8 {[%clk 0:00:47]} 15. Ba3+ {[%clk 0:01:55]}  Nge7 {[%clk 0:00:45]} 16. Bxe7+ {[%clk 0:01:52]}  Kg8 {[%clk 0:00:40]} 17. Qf3 {[%clk 0:01:03]}  Qxg1+ {[%clk 0:00:23]} 18. Ke2 {[%clk 0:01:03]}  Qg6 {[%clk 0:00:23]} 19. Rg1 {[%clk 0:01:02]}  Qc2+ {[%clk 0:00:19]} 20. Kf1 {[%clk 0:01:01]}  Nxe5 {[%clk 0:00:15]} 21. Rxg7+ {[%clk 0:00:42]}  Kxg7 {[%clk 0:00:14]} 22. Bf6+ {[%clk 0:00:43]}  Kf8 {[%clk 0:00:13]} 23. Bxe5 {[%clk 0:00:43]}  Qb1+ {[%clk 0:00:08]} 24. Ke2 {[%clk 0:00:43]}  Qc2+ {[%clk 0:00:06]} 25. Ke3 {[%clk 0:00:43]}  Qc1+ {[%clk 0:00:05]} 26. Kd4 {[%clk 0:00:43]}  Qd2+ {[%clk 0:00:05]} 27. Ke4 {[%clk 0:00:40]}  Qc2+ {[%clk 0:00:04]} 28. Kd4 {[%clk 0:00:39]}  Qd2+ {[%clk 0:00:04]} 29. Kc5 {[%clk 0:00:40]}  b6+ {[%clk 0:00:04]} 30. Kb4 {[%clk 0:00:39]}  a5+ {[%clk 0:00:04]} 31. Ka3 {[%clk 0:00:39]}  Qc1+ {[%clk 0:00:04]} 32. Ka2 {[%clk 0:00:38]}  Qc2+ {[%clk 0:00:04]} 33. Ka3 {[%clk 0:00:38]}  Qc1+ {[%clk 0:00:04]} 34. Ka2 {[%clk 0:00:38]}  Qc2+ {[%clk 0:00:05]} 35. Ka1 {[%clk 0:00:38]}  Qc1+ {[%clk 0:00:05]} 36. Ka2 {[%clk 0:00:39]} 1/2-1/2


[Site "https://www.chess.com"]

[Event "Titled Tuesday Blitz July 18 Late 2023"]
[White "Thiel, Thomas"]
[Black "Kanyamarala, Trisha"]
[WhiteFideId "4615964"]
[BlackFideId "45004722"]
[WhiteElo "2252"]
[BlackElo "2351"]
[Result "0-1"]
[Round "9"]
[TimeControl "180+2"]
[Date "2023.07.18"]
[WhiteClock "0:00:53"]
[BlackClock "0:02:10"]
[Board "105"]

1. e4 {[%clk 0:03:00]}  c5 {[%clk 0:02:54]} 2. Nc3 {[%clk 0:02:59]}  d6 {[%clk 0:02:54]} 3. f4 {[%clk 0:02:57]}  Nc6 {[%clk 0:02:55]} 4. Nf3 {[%clk 0:02:57]}  g6 {[%clk 0:02:56]} 5. Bc4 {[%clk 0:02:55]}  Bg7 {[%clk 0:02:56]} 6. O-O {[%clk 0:02:55]}  a6 {[%clk 0:02:56]} 7. a4 {[%clk 0:02:53]}  Nf6 {[%clk 0:02:55]} 8. d3 {[%clk 0:02:50]}  O-O {[%clk 0:02:53]} 9. Qe1 {[%clk 0:02:49]}  Nd4 {[%clk 0:02:52]} 10. Nxd4 {[%clk 0:02:46]}  cxd4 {[%clk 0:02:53]} 11. Nd5 {[%clk 0:02:42]}  Nxd5 {[%clk 0:02:51]} 12. Bxd5 {[%clk 0:02:42]}  e6 {[%clk 0:02:51]} 13. Bb3 {[%clk 0:02:41]}  Bd7 {[%clk 0:02:51]} 14. a5 {[%clk 0:02:24]}  Rc8 {[%clk 0:02:50]} 15. Bd2 {[%clk 0:02:16]}  f5 {[%clk 0:02:50]} 16. e5 {[%clk 0:02:13]}  dxe5 {[%clk 0:02:47]} 17. fxe5 {[%clk 0:02:14]}  Qc7 {[%clk 0:02:40]} 18. Bf4 {[%clk 0:02:12]}  h6 {[%clk 0:02:39]} 19. h4 {[%clk 0:02:10]}  Rfe8 {[%clk 0:02:37]} 20. Qg3 {[%clk 0:02:09]}  Kh7 {[%clk 0:02:36]} 21. Rae1 {[%clk 0:02:08]}  Qxa5 {[%clk 0:02:28]} 22. h5 {[%clk 0:01:54]}  g5 {[%clk 0:02:27]} 23. Bxg5 {[%clk 0:01:54]}  hxg5 {[%clk 0:02:26]} 24. Qxg5 {[%clk 0:01:53]}  Rg8 {[%clk 0:02:18]} 25. Qg6+ {[%clk 0:01:52]}  Kh8 {[%clk 0:02:18]} 26. h6 {[%clk 0:01:08]}  Bxe5 {[%clk 0:02:17]} 27. Qf7 {[%clk 0:00:53]}  Qd2 {[%clk 0:02:10]} 0-1


[Site "https://www.chess.com"]

[Event "Titled Tuesday Blitz July 18 Late 2023"]
[White "Feliz Dotel, Dewar Bienvenido"]
[Black "Schachpanda_Youtube"]
[WhiteFideId "6402801"]
[WhiteElo "2085"]
[BlackElo "2217"]
[Result "0-1"]
[Round "9"]
[TimeControl "180+2"]
[Date "2023.07.18"]
[WhiteClock "0:00:00"]
[BlackClock "0:00:21"]
[Board "114"]

1. d4 {[%clk 0:02:58]}  d5 {[%clk 0:02:59]} 2. e3 {[%clk 0:02:55]}  Nf6 {[%clk 0:02:59]} 3. Nf3 {[%clk 0:02:54]}  Bf5 {[%clk 0:02:59]} 4. Bd3 {[%clk 0:02:53]}  Bxd3 {[%clk 0:02:58]} 5. Qxd3 {[%clk 0:02:52]}  c6 {[%clk 0:02:59]} 6. c4 {[%clk 0:02:50]}  e6 {[%clk 0:02:59]} 7. Nbd2 {[%clk 0:02:49]}  Nbd7 {[%clk 0:02:59]} 8. O-O {[%clk 0:02:49]}  Be7 {[%clk 0:02:58]} 9. Rb1 {[%clk 0:02:46]}  a5 {[%clk 0:02:55]} 10. b3 {[%clk 0:02:44]}  O-O {[%clk 0:02:55]} 11. a3 {[%clk 0:02:44]}  Re8 {[%clk 0:02:51]} 12. b4 {[%clk 0:02:43]}  axb4 {[%clk 0:02:51]} 13. axb4 {[%clk 0:02:44]}  Bf8 {[%clk 0:02:45]} 14. b5 {[%clk 0:02:39]}  c5 {[%clk 0:02:43]} 15. cxd5 {[%clk 0:02:33]}  Nxd5 {[%clk 0:02:24]} 16. Bb2 {[%clk 0:02:23]}  cxd4 {[%clk 0:02:14]} 17. Bxd4 {[%clk 0:02:08]}  e5 {[%clk 0:02:04]} 18. Bb2 {[%clk 0:02:05]}  Nc5 {[%clk 0:02:02]} 19. Qc4 {[%clk 0:01:57]}  e4 {[%clk 0:01:40]} 20. Nd4 {[%clk 0:01:48]}  Rc8 {[%clk 0:01:35]} 21. Nf5 {[%clk 0:01:30]}  Nd3 {[%clk 0:01:25]} 22. Qd4 {[%clk 0:01:28]}  Nxb2 {[%clk 0:01:21]} 23. Rxb2 {[%clk 0:01:18]}  g6 {[%clk 0:01:14]} 24. Nxe4 {[%clk 0:00:41]}  gxf5 {[%clk 0:01:13]} 25. Ng3 {[%clk 0:00:41]}  Bg7 {[%clk 0:01:11]} 26. Qd2 {[%clk 0:00:40]}  Bxb2 {[%clk 0:01:10]} 27. Qxb2 {[%clk 0:00:41]}  Qf6 {[%clk 0:01:06]} 28. Qb1 {[%clk 0:00:37]}  Nc3 {[%clk 0:01:01]} 29. Qb3 {[%clk 0:00:37]}  Ne4 {[%clk 0:00:54]} 30. Rd1 {[%clk 0:00:26]}  Red8 {[%clk 0:00:52]} 31. Nh5 {[%clk 0:00:18]}  Rxd1+ {[%clk 0:00:47]} 32. Qxd1 {[%clk 0:00:18]}  Qd6 {[%clk 0:00:46]} 33. Qa1 {[%clk 0:00:10]}  Nc3 {[%clk 0:00:38]} 34. h3 {[%clk 0:00:09]}  Qd1+ {[%clk 0:00:38]} 35. Qxd1 {[%clk 0:00:08]}  Nxd1 {[%clk 0:00:39]} 36. Kf1 {[%clk 0:00:06]}  Nc3 {[%clk 0:00:38]} 37. Ke1 {[%clk 0:00:06]}  Nxb5 {[%clk 0:00:38]} 38. Kd2 {[%clk 0:00:06]}  Nd6 {[%clk 0:00:37]} 39. Kd3 {[%clk 0:00:05]}  b5 {[%clk 0:00:37]} 40. Nf6+ {[%clk 0:00:05]}  Kg7 {[%clk 0:00:36]} 41. Nd5 {[%clk 0:00:06]}  Ne4 {[%clk 0:00:34]} 42. f3 {[%clk 0:00:04]}  Rd8 {[%clk 0:00:33]} 43. fxe4 {[%clk 0:00:03]}  fxe4+ {[%clk 0:00:33]} 44. Kxe4 {[%clk 0:00:03]}  Rb8 {[%clk 0:00:25]} 45. Nb4 {[%clk 0:00:03]}  Kf6 {[%clk 0:00:25]} 46. g4 {[%clk 0:00:03]}  Ke6 {[%clk 0:00:25]} 47. h4 {[%clk 0:00:02]}  h6 {[%clk 0:00:23]} 48. g5 {[%clk 0:00:02]}  hxg5 {[%clk 0:00:22]} 49. hxg5 {[%clk 0:00:03]}  Rg8 {[%clk 0:00:21]} 50. Kf4 {[%clk 0:00:03]}  Kd6 {[%clk 0:00:21]} 51. Kf5 {[%clk 0:00:00]}  Kc5 {[%clk 0:00:21]} 0-1


[Site "https://www.chess.com"]

[Event "Titled Tuesday Blitz July 18 Late 2023"]
[White "Floresvillar Gonzalez, Luis Migu"]
[Black "Melikhov, Evgeny V."]
[WhiteFideId "5100542"]
[BlackFideId "4122046"]
[WhiteElo "2083"]
[BlackElo "2361"]
[Result "0-1"]
[Round "9"]
[TimeControl "180+2"]
[Date "2023.07.18"]
[WhiteClock "0:00:41"]
[BlackClock "0:00:58"]
[Board "116"]

1. e4 {[%clk 0:03:00]}  c5 {[%clk 0:02:59]} 2. d4 {[%clk 0:03:00]}  cxd4 {[%clk 0:02:59]} 3. c3 {[%clk 0:03:00]}  d3 {[%clk 0:02:59]} 4. Bxd3 {[%clk 0:02:59]}  Nc6 {[%clk 0:02:59]} 5. Bf4 {[%clk 0:02:58]}  d6 {[%clk 0:02:58]} 6. Nf3 {[%clk 0:02:57]}  Nf6 {[%clk 0:02:57]} 7. h3 {[%clk 0:02:54]}  e6 {[%clk 0:02:55]} 8. Nbd2 {[%clk 0:02:53]}  Be7 {[%clk 0:02:55]} 9. Qe2 {[%clk 0:02:52]}  O-O {[%clk 0:02:54]} 10. O-O {[%clk 0:02:53]}  Qc7 {[%clk 0:02:53]} 11. Rad1 {[%clk 0:02:51]}  a6 {[%clk 0:02:50]} 12. Nc4 {[%clk 0:02:48]}  b5 {[%clk 0:02:47]} 13. Nxd6 {[%clk 0:02:27]}  Bxd6 {[%clk 0:02:47]} 14. e5 {[%clk 0:02:28]}  Nxe5 {[%clk 0:02:37]} 15. Bxe5 {[%clk 0:02:24]}  Bxe5 {[%clk 0:02:32]} 16. Qxe5 {[%clk 0:02:22]}  Qxe5 {[%clk 0:02:30]} 17. Nxe5 {[%clk 0:02:21]}  Bb7 {[%clk 0:02:30]} 18. f3 {[%clk 0:02:15]}  Rfd8 {[%clk 0:02:28]} 19. Kf2 {[%clk 0:02:13]}  Kf8 {[%clk 0:02:25]} 20. Ng4 {[%clk 0:02:10]}  Nd5 {[%clk 0:02:14]} 21. Be4 {[%clk 0:02:09]}  f5 {[%clk 0:01:59]} 22. Bxd5 {[%clk 0:02:09]}  Bxd5 {[%clk 0:01:56]} 23. Ne5 {[%clk 0:02:01]}  Bxa2 {[%clk 0:01:55]} 24. Rxd8+ {[%clk 0:01:57]}  Rxd8 {[%clk 0:01:53]} 25. Ra1 {[%clk 0:01:57]}  Rd2+ {[%clk 0:01:52]} 26. Ke3 {[%clk 0:01:54]}  Rxb2 {[%clk 0:01:52]} 27. g4 {[%clk 0:01:52]}  a5 {[%clk 0:01:37]} 28. Nd3 {[%clk 0:01:51]}  Rh2 {[%clk 0:01:30]} 29. Nc5 {[%clk 0:01:48]}  Ke7 {[%clk 0:01:26]} 30. Nb7 {[%clk 0:01:45]}  a4 {[%clk 0:01:24]} 31. Nc5 {[%clk 0:01:41]}  Bd5 {[%clk 0:01:20]} 32. gxf5 {[%clk 0:01:34]}  Rxh3 {[%clk 0:01:16]} 33. fxe6 {[%clk 0:01:30]}  Rxf3+ {[%clk 0:01:16]} 34. Kd4 {[%clk 0:01:27]}  Bxe6 {[%clk 0:01:15]} 35. Re1 {[%clk 0:01:27]}  Rf6 {[%clk 0:01:12]} 36. Re5 {[%clk 0:01:09]}  a3 {[%clk 0:01:11]} 37. Ne4 {[%clk 0:01:07]}  a2 {[%clk 0:01:07]} 38. Nxf6 {[%clk 0:01:02]}  a1=Q {[%clk 0:01:04]} 39. Nd5+ {[%clk 0:01:02]}  Kf7 {[%clk 0:01:04]} 40. Nb4 {[%clk 0:00:51]}  Qd1+ {[%clk 0:01:01]} 41. Nd3 {[%clk 0:00:50]}  Bc4 {[%clk 0:01:00]} 42. Re3 {[%clk 0:00:46]}  h5 {[%clk 0:00:59]} 43. Ke4 {[%clk 0:00:44]}  Bxd3+ {[%clk 0:00:58]} 44. Rxd3 {[%clk 0:00:44]}  Qxd3+ {[%clk 0:00:58]} 45. Kxd3 {[%clk 0:00:41]}  Ke6 {[%clk 0:00:58]} 0-1


[Site "https://www.chess.com"]